[Event "Kragero Resort ELO 2024"]
[Site "Kragero"]
[Date "2024.02.25"]
[Round "9.13"]
[White "Mortensen, Michael"]
[Black "Smedsrud, Petter"]
[Result "0-1"]
[ECO "A17"]
[WhiteElo "1330"]
[BlackElo "1580"]
[Annotator "NA RC"]
[PlyCount "128"]
[EventDate "2024.02.21"]
[EventType "swiss"]
[EventCountry "NOR"]
[SourceTitle "playchess.com"]
[Source "ChessBase"]
[SourceQuality "1"]
[TimeControl "5400+30"]

1. c4 Nf6 2. g3 e6 3. Bg2 d5 4. Nc3 Be7 5. cxd5 exd5 6. d3 c6 7. Bg5 h6 8. Bd2 O-O 9. d4 Qb6 10. Bc1 Bf5 11. Nf3 Nbd7 12. O-O Rfe8 13. Qb3 Bd6 14. Be3 Ne4 15. Rad1 Qxb3 16. axb3 Nxc3 17. bxc3 Bc2 18. Rd2 Bxb3 19. Rb2 Bc4 20. Rxb7 Nb6 21. Ra1 Bxe2 22. Raxa7 Rxa7 23. Rxa7 Nc4 24. Bd2 Bxf3 25. Bxf3 Nxd2 26. Bg4 Re7 27. Ra6 Rc7 28. Kg2 g6 29. f4 Ne4 30. Bf3 Nxc3 31. Kf2 f5 32. Be2 Nxe2 33. Kxe2 Kf7 34. Kd3 h5 35. h4 Ke6 36. Ra8 Rb7 37. Ke3 Rb3+ 38. Kf2 Rd3 39. Ra4 c5 40. dxc5 Bxc5+ 41. Kg2 Rb3 42. Ra2 d4 43. Ra6+ Rb6 44. Ra2 Kd5 45. Kf3 d3 46. Rd2 Kd4 47. Rd1 Ba3 48. Kf2 Kc3 49. Ke1 Re6+ 50. Kf2 d2 51. Rxd2 Kxd2 52. Kf3 Re2 53. g4 hxg4+ 54. Kg3 Ke3 55. h5 gxh5 56. Kh4 Kxf4 57. Kxh5 g3 58. Kh6 g2 59. Kg6 g1=Q+ 60. Kf7 Ke5 61. Ke8 Rd2 62. Kf7 Rd7+ 63. Ke8 Re7+ 64. Kf8 {[%emt 0:36:44]} Qg7# {[%emt 0:49:18]} 0-1

[Event "Kragero Resort ELO 2024"]
[Site "Kragero"]
[Date "2024.02.25"]
[Round "9.14"]
[White "Lorentzen, Jan Ove"]
[Black "Nordahl, Christine"]
[Result "0-1"]
[ECO "A04"]
[WhiteElo "1479"]
[BlackElo "1333"]
[Annotator "NA RC"]
[PlyCount "70"]
[EventDate "2024.02.21"]
[EventType "swiss"]
[EventCountry "NOR"]
[SourceTitle "playchess.com"]
[Source "ChessBase"]
[SourceQuality "1"]
[TimeControl "5400+30"]

1. Nf3 c5 2. b4 cxb4 3. d4 d5 4. c4 bxc3 5. Nxc3 Nf6 6. a4 Nc6 7. Bf4 a6 8. h3 Bf5 9. Nh4 Bd7 10. g4 h6 11. Nf3 e6 12. Ne5 Bb4 13. Bd2 Nxd4 14. e3 Nc6 15. Nd3 Bd6 16. Rb1 Ne7 17. Rxb7 d4 18. Rxd7 Qxd7 19. exd4 Nfd5 20. Ne4 Bc7 21. Nec5 Qc6 22. Bg2 O-O 23. O-O Qd6 24. f4 g5 25. Ne4 Qb6 26. Ndc5 gxf4 27. a5 Qb2 28. Bc1 Qa2 29. Nd7 Rfd8 30. Nef6+ Kg7 31. Qd3 Ng6 32. Nh5+ Kg8 33. Ndf6+ Kh8 34. Bxd5 exd5 35. Bxf4 {[%emt 0:31:35]} Rac8 {[%emt 1:00:27]} 0-1

[Event "Kragero Resort ELO 2024"]
[Site "Kragero"]
[Date "2024.02.25"]
[Round "9.15"]
[White "Hagen, Bjorn Stian"]
[Black "Shehzad, Alina"]
[Result "1/2-1/2"]
[ECO "B23"]
[WhiteElo "1278"]
[BlackElo "1474"]
[Annotator "NA"]
[PlyCount "123"]
[EventDate "2024.02.21"]
[EventType "swiss"]
[EventCountry "NOR"]
[SourceTitle "playchess.com"]
[Source "ChessBase"]
[SourceQuality "1"]
[TimeControl "5400+30"]

1. e4 c5 2. Nc3 Nc6 3. f4 e6 4. Nf3 d5 5. Bb5 Nge7 6. O-O g6 7. d3 Bg7 8. Qe1 Qd6 9. Ne2 a6 10. Bxc6+ Nxc6 11. e5 Qc7 12. a4 Qb6 13. c3 d4 14. Kh1 O-O 15. Qh4 f6 16. f5 exf5 17. exf6 Rxf6 18. Bh6 Rf7 19. Ng5 Re7 20. Rae1 Qd8 21. Nf4 Bxh6 22. Qxh6 Qf8 23. Qxf8+ Kxf8 24. Rxe7 Nxe7 25. Nxh7+ Kg7 26. Ng5 dxc3 27. bxc3 Bd7 28. Re1 Re8 29. Nge6+ Kf7 30. Nxc5 Bc6 31. a5 Rc8 32. d4 Nd5 33. Nxd5 Bxd5 34. Kg1 Rh8 35. Nd7 Rd8 36. Ne5+ Kf6 37. Rb1 Rc8 38. Rb6+ Ke7 39. Nxg6+ Ke8 40. Nf4 Be4 41. Re6+ Kd7 42. h4 Rxc3 43. h5 Rg3 44. Rg6 Rg4 45. Rxg4 fxg4 46. h6 Ke7 47. Kf2 Kf6 48. Kg3 Kg5 49. Ne6+ Kxh6 50. Kxg4 Bxg2 51. Kf4 Kg6 52. Ke5 Kf7 53. Kd6 Bh1 54. Nc5 Ke8 55. Kc7 Ke7 56. Nxb7 Ke6 57. Kb6 Bf3 58. Kxa6 Kd5 59. Kb6 Be2 60. Nc5 Kxd4 61. a6 Bxa6 {[%emt 1:59:48]} 62. Nxa6 {[%emt 1:59:36]} 1/2-1/2

[Event "Kragero Resort ELO 2024"]
[Site "Kragero"]
[Date "2024.02.25"]
[Round "9.16"]
[White "Hoifodt, Jakob Salen"]
[Black "Nordahl, Frederik"]
[Result "1-0"]
[ECO "B13"]
[WhiteElo "1373"]
[BlackElo "1396"]
[Annotator "NA RC"]
[PlyCount "103"]
[EventDate "2024.02.21"]
[EventType "swiss"]
[EventCountry "NOR"]
[SourceTitle "playchess.com"]
[Source "ChessBase"]
[SourceQuality "1"]
[TimeControl "5400+30"]

1. d4 c5 2. e3 cxd4 3. exd4 d5 4. Nf3 Nc6 5. c3 Nf6 6. Bd3 Bg4 7. O-O e6 8. Nbd2 Bd6 9. Be2 Bh5 10. Ne1 Bg6 11. Bd3 Rc8 12. f4 Bh5 13. Be2 Bxe2 14. Qxe2 Ne7 15. Ndf3 O-O 16. Ne5 Qb6 17. Nc2 Bxe5 18. fxe5 Ne4 19. Ne3 a6 20. Ng4 Ng6 21. Nf2 Nxf2 22. Rxf2 Qa7 23. Bg5 b5 24. a3 Qb7 25. Qg4 a5 26. h4 h6 27. Bd2 Kh7 28. h5 Ne7 29. Raf1 Nc6 30. Qf3 b4 31. axb4 axb4 32. Qd3+ Kh8 33. g4 bxc3 34. bxc3 Qe7 35. g5 hxg5 36. h6 g6 37. Rf6 Kh7 38. Bxg5 Qa7 39. R6f2 Rc7 40. Qf3 f5 41. exf6 Rcf7 42. Qe3 Nd8 43. Rg2 Rg8 44. Rb2 Qc7 45. Rg2 Qa7 46. Kh1 Qa6 47. Rfg1 Qa3 48. Qd3 Rc7 49. Bd2 Qf8 50. Rxg6 Rxg6 51. Qxg6+ Kh8 {[%emt 0:45:15]} 52. Qg7+ {[%emt 1:49:04]} 1-0

[Event "Kragero Resort ELO 2024"]
[Site "Kragero"]
[Date "2024.02.25"]
[Round "9.17"]
[White "Nguyen, Tyson Quang Hy"]
[Black "Matysiak, Tommy"]
[Result "0-1"]
[ECO "A25"]
[WhiteElo "1267"]
[BlackElo "1312"]
[Annotator "NA RC"]
[PlyCount "46"]
[EventDate "2024.02.21"]
[EventType "swiss"]
[EventCountry "NOR"]
[SourceTitle "playchess.com"]
[Source "ChessBase"]
[SourceQuality "1"]
[TimeControl "5400+30"]

1. c4 e5 2. Nc3 Nc6 3. g3 f5 4. Bg2 Nf6 5. d3 Bb4 6. a3 Bxc3+ 7. bxc3 O-O 8. e3 d6 9. Ne2 Qe8 10. Qb3 Kh8 11. O-O Qh5 12. f3 g5 13. a4 e4 14. d4 exf3 15. Bxf3 Ng4 16. Bxg4 Qxg4 17. Qc2 b6 18. Qd3 Bb7 19. d5 Ne5 20. Qd4 Qxe2 21. Rd1 Kg8 22. Kh1 Nf3 23. Rd2 {[%emt 0:21:38]} Qf1# {[%emt 0:25:50]} 0-1

[Event "Kragero Resort ELO 2024"]
[Site "Kragero"]
[Date "2024.02.25"]
[Round "9.19"]
[White "Sorensen, Vidar Busch"]
[Black "Germiani, Yaro"]
[Result "1-0"]
[ECO "D15"]
[WhiteElo "1313"]
[BlackElo "1287"]
[Annotator "NA RC"]
[PlyCount "71"]
[EventDate "2024.02.21"]
[EventType "swiss"]
[EventCountry "NOR"]
[SourceTitle "playchess.com"]
[Source "ChessBase"]
[SourceQuality "1"]
[TimeControl "5400+30"]

1. d4 d5 2. c4 c6 3. a4 Nf6 4. e3 g6 5. Nc3 a6 6. Nf3 Bg7 7. b3 O-O 8. Bd3 Nbd7 9. O-O Re8 10. Ne5 e6 11. Bb2 Qc7 12. f4 c5 13. g4 Nxe5 14. fxe5 cxd4 15. exd4 Nd7 16. g5 dxc4 17. bxc4 b6 18. Rc1 Bb7 19. Be4 Bxe4 20. Nxe4 Red8 21. Qf3 Rf8 22. Ba3 Bxe5 23. dxe5 Nxe5 24. Qg3 Qb8 25. Bxf8 Kxf8 26. Qa3+ Kg8 27. Qd6 Qxd6 28. Nxd6 Nd3 29. Rc2 Nc5 30. Rcf2 Nxa4 31. Nxf7 Nc5 32. Nh6+ Kh8 33. Rf7 a5 34. Rd1 a4 35. Ng4 {[%emt 1:31:51]} a3 {[%emt 0:40:14]} 36. Nf6 {[%emt 1:32:21]} 1-0

[Event "Kragero Resort ELO 2024"]
[Site "Kragero"]
[Date "2024.02.25"]
[Round "9.21"]
[White "Kristiansen, David"]
[Black "Halvorsen, Frode"]
[Result "1-0"]
[ECO "B21"]
[WhiteElo "1407"]
[BlackElo "1385"]
[Annotator "NA RC"]
[PlyCount "49"]
[EventDate "2024.02.21"]
[EventType "swiss"]
[EventCountry "NOR"]
[SourceTitle "playchess.com"]
[Source "ChessBase"]
[SourceQuality "1"]
[TimeControl "5400+30"]

1. e4 c5 2. d4 cxd4 3. c3 dxc3 4. Nxc3 Nc6 5. Nf3 d6 6. Bc4 h6 7. e5 e6 8. O-O d5 9. Bb5 a6 10. Ba4 b5 11. Bc2 Bc5 12. Bf4 Nge7 13. Rc1 Bb7 14. Qd2 Rc8 15. Rfd1 Ba7 16. a3 Rc7 17. Ne2 Qc8 18. Ng3 g5 19. Be3 Bxe3 20. Qxe3 Rf8 21. Nh5 Rh8 22. Nf6+ Kf8 23. Bb1 Ng8 24. Qc5+ Kg7 {[%emt 1:09:45]} 25. Nh5# {[%emt 1:09:13]} 1-0

[Event "Kragero Resort ELO 2024"]
[Site "Kragero"]
[Date "2024.02.25"]
[Round "9.22"]
[White "Andersen, Lars Loberg"]
[Black "Robertsen, Nikolas"]
[Result "1-0"]
[ECO "C53"]
[WhiteElo "1429"]
[BlackElo "1236"]
[Annotator "NA RC"]
[PlyCount "63"]
[EventDate "2024.02.21"]
[EventType "swiss"]
[EventCountry "NOR"]
[SourceTitle "playchess.com"]
[Source "ChessBase"]
[SourceQuality "1"]
[TimeControl "5400+30"]

1. e4 e5 2. Nf3 Nc6 3. Bc4 Bc5 4. c3 Qf6 5. d4 exd4 6. Bg5 Qg6 7. O-O dxc3 8. Nxc3 d6 9. e5 h6 10. Bd3 Qh5 11. Bf4 Nd4 12. exd6 Nxf3+ 13. Qxf3 Qxf3 14. Rfe1+ Be6 15. gxf3 cxd6 16. Bb5+ Ke7 17. Nd5+ Kd8 18. Rac1 Rc8 19. b4 Bxb4 20. Rxc8+ Kxc8 21. Nxb4 Nf6 22. Bxd6 a6 23. Rc1+ Kd8 24. Bc4 Bxc4 25. Rxc4 Kd7 26. Rd4 Ke6 27. Bg3 Rc8 28. a4 g5 29. Rd6+ Kf5 30. Nd5 Rc1+ 31. Kg2 Rc6 {[%emt 0:59:16]} 32. Ne7# {[%emt 1:05:59]} 1-0

[Event "Kragero Resort ELO 2024"]
[Site "Kragero"]
[Date "2024.02.25"]
[Round "9.24"]
[White "Jullum, Hege Ibsen"]
[Black "Holten, Terje"]
[Result "0-1"]
[ECO "A34"]
[WhiteElo "1128"]
[BlackElo "1313"]
[Annotator "NA"]
[PlyCount "54"]
[EventDate "2024.02.21"]
[EventType "swiss"]
[EventCountry "NOR"]
[SourceTitle "playchess.com"]
[Source "ChessBase"]
[SourceQuality "1"]
[TimeControl "5400+30"]

1. Nf3 c5 2. c4 Nc6 3. g3 Nf6 4. Bg2 d6 5. Nc3 e5 6. O-O Be7 7. b3 O-O 8. Bb2 Rb8 9. e3 Bg4 10. d3 Re8 11. Qd2 h6 12. Rad1 Qc8 13. h3 Bxh3 14. Nh2 Nh7 15. f4 Bxg2 16. Qxg2 Bf6 17. Nd5 Qd8 18. Ng4 Nb4 19. fxe5 Nxd5 20. Qxd5 dxe5 21. Nxf6+ Nxf6 22. Qxc5 b6 23. Qb4 Ng4 24. Rfe1 Qf6 25. Rd2 Qf3 26. Ree2 Qxg3+ 27. Rg2 {[%emt 0:56:24]} Qe1# {[%emt 0:49:36]} 0-1